fUST/lending_fUST_20250601
["ID","MTS","AMOUNT","RATE_DAILY","PERIOD"]
[363452917,1748728233079,-430.0,0.00016438,2]
[363452918,1748728233090,-400.0,0.00016438,2]
[363452919,1748728233100,-430.0,0.00016438,2]
[363452920,1748728233109,-430.0,0.00016438,2]
[363452921,1748728233118,-430.0,0.00016438,2]
[363452922,1748728233128,-430.0,0.00016438,2]
[363452923,1748728233137,-400.0,0.00016438,2]
[363452924,1748728233147,-430.0,0.00016438,2]
[363452926,1748728233157,-430.0,0.00016438,2]
[363452928,1748728233167,-324.80810926,0.00016438,2]
[363452930,1748728233178,-504.51640924,0.00016438,2]
[363452932,1748728233188,-430.0,0.00016438,2]
[363452934,1748728233197,-430.0,0.00016438,2]
[363452936,1748728233207,-423.64732987,0.00016438,2]
[363452938,1748728233217,-430.0,0.00016438,2]
[363452940,1748728233227,-430.0,0.00016438,2]
[363452942,1748728233237,-400.0,0.00016438,2]
[363452944,1748728233247,-430.0,0.00016438,2]
[363452946,1748728233257,-430.0,0.00016438,2]
[363452948,1748728233267,-528.26599084,0.00016438,2]
[363452950,1748728233277,-430.0,0.00016438,2]
[363452952,1748728233287,-430.0,0.00016438,2]
[363452954,1748728233297,-550.9032418,0.00016438,2]
[363452956,1748728233306,-430.0,0.00016438,2]
[363452958,1748728233316,-354.58461933,0.00016438,2]
[363452960,1748728233326,-430.0,0.00016438,2]
[363452962,1748728233339,-430.0,0.00016438,2]
[363452964,1748728233349,-430.0,0.00016438,2]
[363452966,1748728233358,-430.0,0.00016438,2]
[363452968,1748728233368,-490.0,0.00016438,2]
[363452970,1748728233379,-400.0,0.00016438,2]
[363452972,1748728233390,-490.0,0.00016438,2]
[363452975,1748728233400,-430.0,0.00016438,2]
[363452977,1748728233410,-430.0,0.00016438,2]
[363452979,1748728233420,-244.5649086,0.00016438,2]
[363452981,1748728233430,-430.0,0.00016438,2]
[363452982,1748728233440,-430.0,0.00016438,2]
[363452984,1748728233449,-430.0,0.00016438,2]
[363452987,1748728233460,-430.0,0.00016438,2]
[363452989,1748728233469,-490.0,0.00016438,2]
[363452991,1748728233482,-490.0,0.00016438,2]
[363452993,1748728233491,-430.0,0.00016438,2]
[363452994,1748728233501,-540.0,0.00016438,2]
[363452996,1748728233511,-490.0,0.00016438,2]
[363452999,1748728233521,-430.0,0.00016438,2]
[363453001,1748728233531,-430.0,0.00016438,2]
[363453003,1748728233541,-490.0,0.00016438,2]
[363453004,1748728233551,-490.0,0.00016438,2]
[363453007,1748728233561,-430.0,0.00016438,2]
[363453009,1748728233570,-490.0,0.00016438,2]
[363453011,1748728233579,-490.0,0.00016438,2]
[363453013,1748728233589,-430.0,0.00016438,2]
[363453015,1748728233598,-430.0,0.00016438,2]
[363453016,1748728233608,-400.0,0.00016438,2]
[363453019,1748728233618,-188.72126539,0.00016438,2]
[363453021,1748728233628,-500.0,0.00016438,2]
[363453022,1748728233637,-500.0,0.00016438,2]
[363453023,1748728233647,-430.0,0.00016438,2]
[363453025,1748728233657,-500.0,0.00016438,2]
[363453027,1748728233666,-500.0,0.00016438,2]
[363453029,1748728233676,-500.0,0.00016438,2]
[363453031,1748728233686,-430.0,0.00016438,2]
[363453033,1748728233695,-490.0,0.00016438,2]
[363453035,1748728233706,-430.0,0.00016438,2]
[363453037,1748728233717,-430.0,0.00016438,2]
[363453039,1748728233727,-450.0,0.00016438,2]
[363453041,1748728233737,-430.0,0.00016438,2]
[363453043,1748728233747,-490.0,0.00016438,2]
[363453045,1748728233756,-430.0,0.00016438,2]
[363453047,1748728233766,-430.0,0.00016438,2]
[363453049,1748728233776,-450.0,0.00016438,2]
[363453051,1748728233786,-430.0,0.00016438,2]
[363453053,1748728233795,-363.43963406,0.00016438,2]
[363453055,1748728233804,-430.0,0.00016438,2]
[363453057,1748728233814,-430.0,0.00016438,2]
[363453059,1748728233823,-400.0,0.00016438,2]
[363453061,1748728233833,-430.0,0.00016438,2]
[363453063,1748728233842,-394.8,0.00016438,2]
[363453065,1748728233852,-430.0,0.00016438,2]
[363453067,1748728233861,-430.0,0.00016438,2]
[363453069,1748728233870,-523.66,0.00016438,2]
[363453071,1748728233880,-430.0,0.00016438,2]
[363453073,1748728233890,-450.0,0.00016438,2]
[363453075,1748728233899,-574.440394,0.00016438,2]
[363453077,1748728233909,-430.0,0.00016438,2]
[363453079,1748728233919,-430.0,0.00016438,2]
[363453081,1748728233928,-430.0,0.00016438,2]
[363453083,1748728233938,-430.0,0.00016438,2]
[363453085,1748728233947,-430.0,0.00016438,2]
[363453087,1748728233958,-430.0,0.00016438,2]
[363453089,1748728233967,-404.96000628,0.00016438,2]
[363453091,1748728233977,-500.0,0.00016438,2]
[363453093,1748728233987,-500.0,0.00016438,2]
[363453096,1748728234006,-500.0,0.00016438,2]
[363453099,1748728234018,-500.0,0.00016438,2]
[363453101,1748728234028,-500.0,0.00016438,2]
[363453103,1748728234037,-430.0,0.00016438,2]
[363453105,1748728234047,-430.0,0.00016438,2]
[363453107,1748728234057,-430.0,0.00016438,2]
[363453109,1748728234067,-430.0,0.00016438,2]
[363453111,1748728234079,-456.21,0.00016438,2]
[363453113,1748728234089,-430.0,0.00016438,2]
[363453115,1748728234099,-430.0,0.00016438,2]
[363453117,1748728234109,-430.0,0.00016438,2]
[363453119,1748728234119,-430.0,0.00016438,2]
[363453121,1748728234129,-430.0,0.00016438,2]
[363453123,1748728234138,-500.0,0.00016438,2]
[363453125,1748728234148,-430.0,0.00016438,2]
[363453127,1748728234159,-400.0,0.00016438,2]
[363453129,1748728234169,-430.0,0.00016438,2]
[363453131,1748728234178,-430.0,0.00016438,2]
[363453133,1748728234189,-400.0,0.00016438,2]
[363453135,1748728234199,-430.0,0.00016438,2]
[363453137,1748728234209,-430.0,0.00016438,2]
[363453140,1748728234219,-430.0,0.00016438,2]
[363453142,1748728234230,-430.0,0.00016438,2]
[363453144,1748728234240,-456.53913042,0.00016438,2]
[363453146,1748728234250,-430.0,0.00016438,2]
[363453148,1748728234259,-430.0,0.00016438,2]
[363453150,1748728234269,-213.2477313,0.00016438,2]
[363453152,1748728234279,-339.183922,0.00016438,2]
[363453154,1748728234290,-430.0,0.00016438,2]
[363453156,1748728234300,-490.0,0.00016438,2]
[363453158,1748728234310,-430.0,0.00016438,2]
[363453160,1748728234320,-430.0,0.00016438,2]
[363453162,1748728234330,-430.0,0.00016438,2]
[363453164,1748728234344,-430.0,0.00016438,2]
[363453166,1748728234354,-430.0,0.00016438,2]
[363453168,1748728234363,-151.0,0.00016438,2]
[363453170,1748728234374,-475.47524009,0.00016438,2]
[363453172,1748728234384,-151.0,0.00016438,2]
[363453174,1748728234394,-151.0,0.00016438,2]
[363453176,1748728234403,-208.48728359,0.00016438,2]
[363453178,1748728234413,-430.0,0.00016438,2]
[363453180,1748728234423,-255.32674741,0.00016438,2]
[363453182,1748728234432,-500.0,0.00016438,2]
[363453185,1748728234442,-430.0,0.00016438,2]
[363453187,1748728234452,-430.0,0.00016438,2]
[363453189,1748728234462,-430.0,0.00016438,2]
[363453191,1748728234472,-430.0,0.00016438,2]
[363453193,1748728234482,-430.0,0.00016438,2]
[363453195,1748728234492,-430.0,0.00016438,2]
[363453197,1748728234502,-490.0,0.00016438,2]
[363453199,1748728234512,-438.85,0.00016438,2]
[363453201,1748728234523,-430.0,0.00016438,2]
[363453203,1748728234533,-430.0,0.00016438,2]
[363453205,1748728234543,-430.0,0.00016438,2]
[363453207,1748728234553,-430.0,0.00016438,2]
[363453209,1748728234562,-430.0,0.00016438,2]
[363453211,1748728234572,-500.0,0.00016438,2]
[363453230,1748728234741,-430.0,0.00016438,2]
[363453232,1748728234751,-430.0,0.00016438,2]
[363453234,1748728234761,-151.0,0.00016438,2]
[363453236,1748728234771,-865.81,0.00016438,2]
[363453238,1748728234781,-568.18,0.00016438,2]
[363453240,1748728234791,-430.0,0.00016438,2]
[363453242,1748728234801,-430.0,0.00016438,2]
[363453244,1748728234811,-430.0,0.00016438,2]
[363453246,1748728234821,-430.0,0.00016438,2]
[363453248,1748728234830,-452.91587572,0.00016438,2]
[363453250,1748728234840,-430.0,0.00016438,2]
[363453252,1748728234849,-430.0,0.00016438,2]
[363453254,1748728234859,-430.0,0.00016438,2]
[363453256,1748728234869,-430.0,0.00016438,2]
[363453258,1748728234879,-430.0,0.00016438,2]
[363453260,1748728234888,-1689.58,0.00016438,2]
[363453262,1748728234899,-1358.16,0.00016438,2]
[363453264,1748728234908,-430.0,0.00016438,2]
[363453266,1748728234918,-430.0,0.00016438,2]
[363453268,1748728234928,-430.0,0.00016438,2]
[363453270,1748728234937,-430.0,0.00016438,2]
[363453272,1748728234947,-430.0,0.00016438,2]
[363453274,1748728234956,-430.0,0.00016438,2]
[363453276,1748728234966,-430.0,0.00016438,2]
[363453278,1748728234976,-430.0,0.00016438,2]
[363453280,1748728234985,-430.0,0.00016438,2]
[363453282,1748728234995,-544.86,0.00016438,2]
[363453284,1748728235004,-430.0,0.00016438,2]
[363453287,1748728235018,-430.0,0.00016438,2]
[363453289,1748728235028,-430.0,0.00016438,2]
[363453291,1748728235038,-430.0,0.00016438,2]
[363453293,1748728235047,-431.09031211,0.00016438,2]
[363453295,1748728235058,-430.0,0.00016438,2]
[363453297,1748728235067,-206.07,0.00016438,2]
[363453299,1748728235077,-430.0,0.00016438,2]
[363453301,1748728235087,-845.99,0.00016438,2]
[363453303,1748728235096,-430.0,0.00016438,2]
[363453305,1748728235106,-430.0,0.00016438,2]
[363453307,1748728235118,-430.0,0.00016438,2]
[363453309,1748728235127,-735.33,0.00016438,2]
[363453311,1748728235137,-430.0,0.00016438,2]
[363453313,1748728235146,-430.0,0.00016438,2]
[363453315,1748728235156,-430.0,0.00016438,2]
[363453317,1748728235166,-430.0,0.00016438,2]
[363453319,1748728235176,-430.0,0.00016438,2]
[363453321,1748728235185,-430.0,0.00016438,2]
[363453323,1748728235195,-430.0,0.00016438,2]
[363453325,1748728235205,-430.0,0.00016438,2]
[363453327,1748728235214,-1398.85,0.00016438,2]
[363453329,1748728235224,-430.0,0.00016438,2]
[363453331,1748728235233,-430.0,0.00016438,2]
[363453333,1748728235243,-430.0,0.00016438,2]
[363453335,1748728235253,-430.0,0.00016438,2]
[363453337,1748728235263,-430.0,0.00016438,2]
[363453339,1748728235272,-430.0,0.00016438,2]
[363453341,1748728235282,-517.97,0.00016438,2]
[363453343,1748728235291,-430.0,0.00016438,2]
[363453345,1748728235300,-430.0,0.00016438,2]
[363453347,1748728235309,-430.0,0.00016438,2]
[363453349,1748728235319,-430.0,0.00016438,2]
[363453351,1748728235328,-430.0,0.00016438,2]
[363453353,1748728235342,-430.0,0.00016438,2]
[363453355,1748728235352,-430.0,0.00016438,2]
[363453357,1748728235361,-450.0,0.00016438,2]
[363453359,1748728235371,-430.0,0.00016438,2]
[363453361,1748728235383,-430.0,0.00016438,2]
[363453363,1748728235392,-500.0,0.00016438,2]
[363453365,1748728235402,-515.1,0.00016438,2]
[363453367,1748728235415,-430.0,0.00016438,2]
[363453369,1748728235424,-151.0,0.00016438,2]
[363453371,1748728235434,-430.0,0.00016438,2]
[363453373,1748728235445,-535.76589772,0.00016438,2]
[363453375,1748728235455,-430.0,0.00016438,2]
[363453377,1748728235465,-430.0,0.00016438,2]
[363453379,1748728235476,-485.41,0.00016438,2]
[363453381,1748728235486,-432.75,0.00016438,2]
[363453383,1748728235495,-430.0,0.00016438,2]
[363453385,1748728235505,-430.0,0.00016438,2]
[363453387,1748728235516,-430.0,0.00016438,2]
[363453389,1748728235526,-430.0,0.00016438,2]
[363453391,1748728235536,-430.0,0.00016438,2]
[363453393,1748728235546,-200.0,0.00016438,2]
[363453395,1748728235556,-430.0,0.00016438,2]
[363453397,1748728235566,-1112.3,0.00016438,2]
[363453399,1748728235575,-430.0,0.00016438,2]
[363453401,1748728235585,-469.27,0.00016438,2]
[363453403,1748728235595,-430.0,0.00016438,2]
[363453405,1748728235605,-430.0,0.00016438,2]
[363453407,1748728235614,-430.0,0.00016438,2]
[363453409,1748728235624,-430.0,0.00016438,2]
[363453411,1748728235634,-430.0,0.00016438,2]
[363453413,1748728235643,-430.0,0.00016438,2]
[363453415,1748728235653,-430.0,0.00016438,2]
[363453417,1748728235663,-430.0,0.00016438,2]
[363453419,1748728235672,-728.92,0.00016438,2]
[363453421,1748728235682,-430.0,0.00016438,2]
[363453423,1748728235691,-430.0,0.00016438,2]
[363453425,1748728235700,-430.0,0.00016438,2]
[363453427,1748728235711,-430.0,0.00016438,2]
[363453429,1748728235720,-430.0,0.00016438,2]
[363453431,1748728235729,-430.0,0.00016438,2]
[363453433,1748728235739,-430.0,0.00016438,2]
[363453435,1748728235748,-1161.16,0.00016438,2]
[363453437,1748728235759,-524.62,0.00016438,2]
[363453439,1748728235770,-430.0,0.00016438,2]
[363453442,1748728235780,-912.32,0.00016438,2]
[363453444,1748728235789,-430.0,0.00016438,2]
[363453446,1748728235799,-430.0,0.00016438,2]
[363453448,1748728235809,-430.0,0.00016438,2]
[363453450,1748728235819,-430.0,0.00016438,2]
[363453452,1748728235829,-565.33,0.00016438,2]
[363453454,1748728235839,-300.0,0.00016438,2]
[363453456,1748728235849,-430.0,0.00016438,2]
[363453458,1748728235858,-430.0,0.00016438,2]
[363453460,1748728235868,-430.0,0.00016438,2]
[363453462,1748728235877,-350.21144787,0.00016438,2]
[363453464,1748728235887,-509.35692007,0.00016438,2]
[363453466,1748728235896,-430.0,0.00016438,2]
[363453468,1748728235906,-470.92,0.00016438,2]
[363453470,1748728235915,-430.0,0.00016438,2]
[363453472,1748728235925,-430.0,0.00016438,2]
[363453474,1748728235936,-430.0,0.00016438,2]
[363453476,1748728235946,-430.0,0.00016438,2]
[363453477,1748728235955,-430.0,0.00016438,2]
[363453479,1748728235964,-430.0,0.00016438,2]
[363453481,1748728235974,-430.0,0.00016438,2]
[363453483,1748728235983,-1332.64,0.00016438,2]
[363453484,1748728235993,-430.0,0.00016438,2]
[363453486,1748728236003,-728.09,0.00016438,2]
[363453488,1748728236014,-500.0,0.00016438,2]
[363453490,1748728236024,-500.0,0.00016465,2]
[363453491,1748728236033,-500.0,0.00016465,2]
[363453494,1748728236043,-500.0,0.00016493,2]
[363453496,1748728236054,-500.0,0.00016493,2]
[363453497,1748728236063,-198.60315693,0.0001652,2]
[363453499,1748728236073,-500.0,0.0001652,2]
[363453501,1748728236083,-500.0,0.00016548,2]
[363453503,1748728236093,-500.0,0.00016575,2]
[363453506,1748728236103,-500.0,0.00016602,2]
[363453508,1748728236117,-500.0,0.0001663,2]
[363453510,1748728236130,-500.0,0.00016657,2]
[363453513,1748728236144,-500.0,0.00016685,2]
[363453515,1748728236157,-500.0,0.0001671,2]
[363453518,1748728236171,-500.0,0.0001671,2]
[363453520,1748728236182,-500.0,0.00016711,2]
[363453522,1748728236193,-500.0,0.00016711,2]
[363453524,1748728236207,-500.0,0.00016712,2]
[363453527,1748728236220,-430.0,0.00016712,2]
[363453529,1748728236231,-430.0,0.00016712,2]
[363453531,1748728236244,-430.0,0.00016712,2]
[363453533,1748728236256,-430.0,0.00016712,2]
[363453536,1748728236270,-178.69,0.00016712,2]
[363453538,1748728236283,-436.44,0.00016712,2]
[363453540,1748728236294,-430.0,0.00016712,2]
[363453543,1748728236307,-430.0,0.00016712,2]
[363453545,1748728236322,-430.0,0.00016712,2]
[363453547,1748728236336,-430.0,0.00016712,2]
[363453549,1748728236348,-438.85,0.00016712,2]
[363453552,1748728236360,-316.37,0.00016712,2]
[363453554,1748728236372,-430.0,0.00016712,2]
[363453556,1748728236384,-388.9611703,0.00016712,2]
[363453558,1748728236395,-430.0,0.00016712,2]
[363453561,1748728236408,-865.81,0.00016712,2]
[363453563,1748728236421,-430.0,0.00016712,2]
[363453565,1748728236433,-430.0,0.00016712,2]
[363453568,1748728236445,-1689.58,0.00016712,2]
[363453570,1748728236455,-1358.16,0.00016712,2]
[363453572,1748728236465,-430.0,0.00016712,2]
[363453574,1748728236477,-430.0,0.00016712,2]
[363453576,1748728236489,-201.57,0.00016712,2]
[363453579,1748728236500,-430.0,0.00016712,2]
[363453581,1748728236513,-544.86,0.00016712,2]
[363453583,1748728236527,-430.0,0.00016712,2]
[363453586,1748728236540,-845.99,0.00016712,2]
[363453587,1748728236552,-430.0,0.00016712,2]
[363453588,1748728236565,-735.33,0.00016712,2]
[363453589,1748728236579,-430.0,0.00016712,2]
[363453590,1748728236592,-385.38,0.00016712,2]
[363453591,1748728236605,-430.0,0.00016712,2]
[363453592,1748728236619,-430.0,0.00016712,2]
[363453593,1748728236629,-1398.85,0.00016712,2]
[363453594,1748728236639,-446.79,0.00016712,2]
[363453595,1748728236650,-430.0,0.00016712,2]
[363453596,1748728236661,-430.0,0.00016712,2]
[363453597,1748728236672,-430.0,0.00016712,2]
[363453598,1748728236684,-515.1,0.00016712,2]
[363453599,1748728236698,-375.53,0.00016712,2]
[363453600,1748728236711,-432.75,0.00016712,2]
[363453601,1748728236723,-579.55,0.00016712,2]
[363453602,1748728236733,-430.0,0.00016712,2]
[363453603,1748728236745,-1112.3,0.00016712,2]
[363453604,1748728236756,-469.27,0.00016712,2]
[363453605,1748728236767,-567.5,0.00016712,2]
[363453606,1748728236780,-430.0,0.00016712,2]
[363453607,1748728236792,-200.11,0.00016712,2]
[363453608,1748728236803,-430.0,0.00016712,2]
[363453609,1748728236813,-728.92,0.00016712,2]
[363453610,1748728236824,-299.1,0.00016712,2]
[363453611,1748728236834,-430.0,0.00016712,2]
[363453612,1748728236845,-327.96,0.00016712,2]
[363453613,1748728236856,-1161.16,0.00016712,2]
[363453614,1748728236867,-524.62,0.00016712,2]
[363453615,1748728236877,-430.0,0.00016712,2]
[363453616,1748728236889,-912.32,0.00016712,2]
[363453617,1748728236901,-181.91,0.00016712,2]
[363453618,1748728236913,-565.33,0.00016712,2]
[363453619,1748728236923,-430.0,0.00016712,2]
[363453620,1748728236934,-293.06,0.00016712,2]
[363453621,1748728236945,-430.0,0.00016712,2]
[363453622,1748728236956,-254.6,0.00016712,2]
[363453623,1748728236967,-1332.64,0.00016712,2]
[363453624,1748728236978,-165.52142235,0.00016712,2]
[363453625,1748728236989,-728.09,0.00016712,2]
[363453626,1748728236999,-500.0,0.00016739,2]
[363453627,1748728237011,-594.09610863,0.00016767,2]
[363453628,1748728237021,-446.25098714,0.00016886,2]
[363453629,1748728237033,-1076.32925241,0.000169,2]
[363453630,1748728237045,-500.0,0.00016985,2]
[363453631,1748728237055,-500.0,0.00016985,2]
[363453632,1748728237066,-430.0,0.00016986,2]
[363453633,1748728237076,-430.0,0.00016986,2]
[363453634,1748728237087,-206.24595677,0.00016986,2]
[363453635,1748728237097,-438.85,0.00016986,2]
[363453636,1748728237107,-494.22,0.00016986,2]
[363453637,1748728237118,-484.28,0.00016986,2]
[363453638,1748728237129,-865.81,0.00016986,2]
[363453639,1748728237140,-430.0,0.00016986,2]
[363453640,1748728237151,-430.0,0.00016986,2]
[363453641,1748728237162,-1689.58,0.00016986,2]
[363453642,1748728237173,-1358.16,0.00016986,2]
[363453643,1748728237184,-430.0,0.00016986,2]
[363453645,1748728237196,-430.0,0.00016986,2]
[363453647,1748728237207,-466.38723153,0.00016986,2]
[363453648,1748728237218,-544.86,0.00016986,2]
[363453650,1748728237230,-430.0,0.00016986,2]
[363453653,1748728237242,-845.99,0.00016986,2]
[363453655,1748728237253,-430.0,0.00016986,2]
[363453657,1748728237264,-735.33,0.00016986,2]
[363453659,1748728237276,-430.0,0.00016986,2]
[363453661,1748728237287,-430.0,0.00016986,2]
[363453663,1748728237298,-1398.85,0.00016986,2]
[363453665,1748728237309,-430.0,0.00016986,2]
[363453666,1748728237321,-430.0,0.00016986,2]
[363453667,1748728237333,-430.0,0.00016986,2]
[363453668,1748728237347,-515.1,0.00016986,2]
[363453669,1748728237358,-432.75,0.00016986,2]
[363453670,1748728237369,-302.84,0.00016986,2]
[363453671,1748728237381,-1112.3,0.00016986,2]
[363453672,1748728237392,-469.27,0.00016986,2]
[363453673,1748728237404,-430.0,0.00016986,2]
[363453674,1748728237417,-430.0,0.00016986,2]
[363453675,1748728237428,-728.92,0.00016986,2]
[363453676,1748728237439,-430.0,0.00016986,2]
[363453677,1748728237451,-1161.16,0.00016986,2]
[363453678,1748728237461,-524.62,0.00016986,2]
[363453679,1748728237473,-430.0,0.00016986,2]
[363453680,1748728237484,-912.32,0.00016986,2]
[363453681,1748728237495,-565.33,0.00016986,2]
[363453682,1748728237506,-430.0,0.00016986,2]
[363453683,1748728237518,-1332.64,0.00016986,2]
[363453684,1748728237529,-728.09,0.00016986,2]
[363453685,1748728237540,-652.27917079,0.00017077,2]
[363453686,1748728237551,-1076.32925214,0.00017176,2]
[363453687,1748728237561,-430.0,0.0001726,2]
[363453688,1748728237572,-430.0,0.0001726,2]
[363453689,1748728237584,-438.85,0.0001726,2]
[363453690,1748728237595,-865.81,0.0001726,2]
[363453691,1748728237606,-430.0,0.0001726,2]
[363453692,1748728237616,-430.0,0.0001726,2]
[363453693,1748728237627,-1689.58,0.0001726,2]
[363453694,1748728237638,-1358.16,0.0001726,2]
[363453695,1748728237649,-430.0,0.0001726,2]
[363453696,1748728237661,-430.0,0.0001726,2]
[363453697,1748728237673,-544.86,0.0001726,2]
[363453698,1748728237684,-430.0,0.0001726,2]
[363453699,1748728237696,-845.99,0.0001726,2]
[363453700,1748728237706,-430.0,0.0001726,2]
[363453702,1748728237893,-735.33,0.0001726,2]
[363453704,1748728237906,-241.56708287,0.0001726,2]
[363453707,1748728237917,-430.0,0.0001726,2]
[363453709,1748728237926,-430.0,0.0001726,2]
[363453711,1748728237936,-1398.85,0.0001726,2]
[363453712,1748728237946,-430.0,0.0001726,2]
[363453714,1748728237955,-430.0,0.0001726,2]
[363453715,1748728237965,-430.0,0.0001726,2]
[363453716,1748728237975,-515.1,0.0001726,2]
[363453717,1748728237984,-432.75,0.0001726,2]
[363453718,1748728237994,-1112.3,0.0001726,2]
[363453719,1748728238003,-469.27,0.0001726,2]
[363453720,1748728238013,-430.0,0.0001726,2]
[363453721,1748728238022,-728.92,0.0001726,2]
[363453722,1748728238032,-430.0,0.0001726,2]
[363453723,1748728238041,-1161.16,0.0001726,2]
[363453724,1748728238050,-524.62,0.0001726,2]
[363453725,1748728238060,-430.0,0.0001726,2]
[363453726,1748728238069,-912.32,0.0001726,2]
[363453727,1748728238079,-565.33,0.0001726,2]
[363453728,1748728238089,-430.0,0.0001726,2]
[363453729,1748728238098,-1332.64,0.0001726,2]
[363453730,1748728238109,-506.21251821,0.0001726,2]
[363453784,1748728238626,-151.0,0.00016438,2]
[363453786,1748728238635,-534.15,0.00016438,2]
[363453788,1748728238645,-430.0,0.00016438,2]
[363453790,1748728238654,-430.0,0.00016712,2]
[363453792,1748728238664,-430.0,0.00016986,2]
[363453794,1748728238674,-221.87748179,0.0001726,2]
[363453796,1748728238683,-1076.32925214,0.00017452,2]
[363453798,1748728238693,-500.0,0.00017533,2]
[363453800,1748728238702,-500.0,0.00017533,2]
[363453803,1748728238714,-430.0,0.00017534,2]
[363453805,1748728238723,-430.0,0.00017534,2]
[363453807,1748728238733,-430.0,0.00017534,2]
[363453809,1748728238742,-430.0,0.00017534,2]
[363453811,1748728238751,-1689.58,0.00017534,2]
[363453813,1748728238761,-1358.16,0.00017534,2]
[363453815,1748728238770,-430.0,0.00017534,2]
[363453817,1748728238780,-430.0,0.00017534,2]
[363453819,1748728238790,-544.86,0.00017534,2]
[363453821,1748728238799,-430.0,0.00017534,2]
[363453823,1748728238809,-845.99,0.00017534,2]
[363453825,1748728238818,-430.0,0.00017534,2]
[363453827,1748728238828,-735.33,0.00017534,2]
[363453829,1748728238837,-430.0,0.00017534,2]
[363453831,1748728238847,-430.0,0.00017534,2]
[363453833,1748728238857,-1398.85,0.00017534,2]
[363453835,1748728238866,-430.0,0.00017534,2]
[363453837,1748728238876,-430.0,0.00017534,2]
[363453839,1748728238885,-430.0,0.00017534,2]
[363453841,1748728238895,-515.1,0.00017534,2]
[363453843,1748728238904,-432.75,0.00017534,2]
[363453845,1748728238914,-1112.3,0.00017534,2]
[363453847,1748728238924,-469.27,0.00017534,2]
[363453849,1748728238934,-430.0,0.00017534,2]
[363453851,1748728238943,-728.92,0.00017534,2]
[363453853,1748728238953,-430.0,0.00017534,2]
[363453855,1748728238963,-1161.16,0.00017534,2]
[363453857,1748728238973,-524.62,0.00017534,2]
[363453859,1748728238983,-374.18,0.00017534,2]
[363453861,1748728238993,-912.32,0.00017534,2]
[363453863,1748728239003,-565.33,0.00017534,2]
[363453865,1748728239013,-430.0,0.00017534,2]
[363453867,1748728239023,-1332.64,0.00017534,2]
[363453869,1748728239032,-728.09,0.00017534,2]
[363453871,1748728239043,-1076.32925214,0.00017728,2]
[363453873,1748728239053,-500.0,0.00017807,2]
[363453875,1748728239063,-500.0,0.00017807,2]
[363453878,1748728239076,-430.0,0.00017808,2]
[363453880,1748728239093,-570.9,0.00017808,2]
[363453882,1748728239103,-430.0,0.00017808,2]
[363453884,1748728239112,-430.0,0.00017808,2]